Cogmind - Beta 9.6 @@@ ROGUE MODE // 2020.05.30 @ 09:34:11 Player: JINGUS Result: Self-destructed Performance ------------- Evolutions (2) 1000 Regions Visited (4) 800 Robots Destroyed (12) 60 Value Destroyed (367) 367 Prototype IDs (0) 0 Alien Tech Used (0) 0 Bonus (0) 0 TOTAL SCORE: 2227 Bonus ------- None Cogmind --------- Core Integrity 455/550 Matter 128/300 Energy 185/185 System Corruption 0% Temperature Cool (22) Movement Rolling (90) Ox1 Location -8/Materials Parts ------- > --- POWER (2) -------- Light Ion Engine Light Nuclear Core > --- PROPULSION (3) --- Wheel Wheel > --- UTILITY (4) ------ Seismic Analyzer Power Shielding Light Armor Plating Hardened Medium Armor Plating > --- WEAPON (2) ------- Grenade Launcher Great Maul > --- INVENTORY (4) ---- (None) Peak State ------------ > --- POWER ------------ Light Nuclear Core > --- PROPULSION ------- Wheel Compact Wheel > --- UTILITY ---------- Seismic Analyzer Improved ECM Suite Power Shielding Hardened Medium Armor Plating > --- WEAPON ----------- Pulse Rifle Great Maul > --- INVENTORY -------- Hacking Suite Grenade Launcher [Rating: 19] Favorites ----------- Power Light Ion Engine Engine Light Ion Engine Power Core Light Nuclear Core Propulsion Wheel Wheel Wheel Utility Seismic Analyzer Device Improved ECM Suite Processor Seismic Analyzer Protection Power Shielding Weapon Assault Rifle Energy Gun Pulse Rifle Ballistic Gun Assault Rifle Launcher Grenade Launcher Impact Weapon Great Maul Build | -11 -10 -9 -9 -8 ------- Run | Scr Mat Mat Min Mat Slots Evolved 4 | . . 2 . 2 Power 1 | . . 1 . . Propulsion 1 | . . . . 1 Utility 2 | . . 1 . 1 Weapon . | . . . . . Parts Attached 22 | 5 7 . . 10 Power 6 | 1 2 . . 3 Engine 4 | 1 2 . . 1 Core 2 | . . . . 2 Reactor . | . . . . . Propulsion 3 | 2 . . . 1 Treads . | . . . . . Leg . | . . . . . Wheel 3 | 2 . . . 1 Hover . | . . . . . Flight . | . . . . . Utility 6 | . 3 . . 3 Device 2 | . 1 . . 1 Storage . | . . . . . Processor 1 | . 1 . . . Hackware . | . . . . . Protection 3 | . 1 . . 2 Artifact . | . . . . . Weapon 7 | 2 2 . . 3 Energy Gun 1 | . . . . 1 Energy Cannon . | . . . . . Ballistic Gun 3 | 2 1 . . . Ballistic Cannon . | . . . . . Launcher 2 | . 1 . . 1 Special Weapon . | . . . . . Impact Weapon 1 | . . . . 1 Slashing Weapon . | . . . . . Piercing Weapon . | . . . . . Special Melee Weapon . | . . . . . Unidentified Prototypes . | . . . . . Parts Lost 3 | . . . . 3 Power 1 | . . . . 1 Propulsion 1 | . . . . 1 Utility . | . . . . . Weapon 1 | . . . . 1 Highest Loss Streak 2 | . . . . 2 Average Slot Usage (%) 86 | . 95 77 77 77 Engine 9 | . 13 11 11 5 Core 3 | . . . . 8 Wheel 22 | . 28 22 22 16 Device 4 | . 3 . . 5 Processor 10 | . 12 11 11 9 Protection 11 | . 7 11 11 15 Energy Gun 2 | . . . . 4 Ballistic Gun 16 | . 26 22 22 4 Launcher 2 | . 1 . . 2 Impact Weapon 1 | . . . . 4 Naked Turns . | . . . . . Heaviest Build 29 | 9 17 8 8 29 Greatest Support 26 | 26 26 26 26 26 Greatest Overweight (x) 2 | . . . . 2 Average Overweight (x) . | . . . . . Largest Inventory Capacity 4 | 4 4 4 4 4 Average Capacity 4 | 4 4 4 4 4 Most Carried 3 | 3 3 1 1 3 Average Carried 1 | . 1 1 1 1 Final Capacity 4 | 4 4 4 4 4 Final Carried 1 | 1 1 1 1 . Class Distribution -------------------- 87% | Mutant 12% | Scavenger-Mutant Dominant Class ---------------- Mutant | -10/Materials Mutant | -9/Materials Mutant | -9/Mines Mutant | -8/Materials Resources | -11 -10 -9 -9 -8 ----------- Run | Scr Mat Mat Min Mat Matter Collected 381 | 147 45 . . 189 Remotely . | . . . . . Salvage Created 340 | . 45 . . 295 Parts 23 | . 6 . . 17 Haulers Intercepted . | . . . . . Recyclers Shooed . | . . . . . Parts Field Recycled . | . . . . . Retrieved Matter . | . . . . . Parts Self-Destructed . | . . . . . Prevented . | . . . . . Kills | -11 -10 -9 -9 -8 ------- Run | Scr Mat Mat Min Mat Combat Hostiles Destroyed 10 | . 3 . . 7 Guns 5 | . 3 . . 2 AOE 5 | . . . . 5 Classes Destroyed 4 | . 1 . . 3 Worker 2 | . . . . 2 Swarmer 3 | . 3 . . . Grunt 5 | . . . . 5 Sentry 2 | . . . . 2 Best Kill Streak 3 | . 3 . . 3 Combat Bots Only 3 | . 3 . . 3 Max Kills in Single Turn 2 | . 1 . . 2 Gunslinging . | . . . . . Exploded 2 | . . . . 2 Melee . | . . . . . Uniques/NPCs Destroyed . | . . . . . Combat | -11 -10 -9 -9 -8 -------- Run | Scr Mat Mat Min Mat Damage Taken 628 | . 94 . . 534 Core 95 | . . . . 95 Absorbed by Shields . | . . . . . Core Remaining (%) 100 | 100 100 . 100 . Volleys Fired 29 | . 7 . . 22 Largest 2 | . 2 . . 2 Hottest 83 | . 40 . . 83 Shots Fired 44 | . 14 . . 30 Gun 37 | . 14 . . 23 Cannon . | . . . . . Launcher 7 | . . . . 7 Special . | . . . . . Kinetic 26 | . 14 . . 12 Thermal 11 | . . . . 11 Explosive 7 | . . . . 7 Electromagnetic . | . . . . . Robot Hit Streak 11 | . 5 . . 11 Robot Miss Streak 3 | . 3 . . 3 Penetration Max . | . . . . . Secondary Targets 2 | . 1 . . 1 Max Gunslinging Chain 1 | . 1 . . 1 Shots Hit Robots 25 | . 8 . . 17 Core Hits 23 | . 3 . . 20 Critical Hits 1 | . . . . 1 Critical Kills . | . . . . . Critical Parts Destroyed 1 | . . . . 1 Melee Attacks . | . . . . . Impact . | . . . . . Slashing . | . . . . . Piercing . | . . . . . Sneak Attacks . | . . . . . Combat Hostiles . | . . . . . Follow-up Attacks . | . . . . . Damage Inflicted 796 | . 87 . . 709 Guns 340 | . 87 . . 253 Cannons . | . . . . . Explosions 456 | . . . . 456 Melee . | . . . . . Ramming . | . . . . . Kinetic 189 | . 87 . . 102 Thermal 151 | . . . . 151 Explosive 456 | . . . . 456 Electromagnetic . | . . . . . Impact . | . . . . . Slashing . | . . . . . Piercing . | . . . . . Highest Corruption . | . . . . . Average Corruption . | . . . . . Corruption Purged . | . . . . . Overload Shots . | . . . . . Overflow Damage . | . . . . . Projectiles . | . . . . . Explosions . | . . . . . Melee . | . . . . . Knockbacks . | . . . . . Impact . | . . . . . Kinetic . | . . . . . Secondary . | . . . . . Self-Inflicted Damage 60 | . . . . 60 Shots 3 | . . . . 3 Rammed . | . . . . . Targets Rammed . | . . . . . Kicked . | . . . . . Crushed . | . . . . . Highest Temperature 221 | . . . . 221 Average Temperature 75 | . . . . 75 Received Heat Transfer 153 | . . . . 153 Siege Activations . | . . . . . Robots Corrupted . | . . . . . Combat Hostiles . | . . . . . Parts Fried . | . . . . . Impact Corruptions . | . . . . . Robots Melted . | . . . . . Combat Hostiles . | . . . . . Parts Melted 1 | . . . . 1 Heat Transferred 333 | . . . . 333 Parts Sabotaged . | . . . . . Parts Stolen . | . . . . . Parts Stripped . | . . . . . Power Chain Reactions . | . . . . . Missiles Intercepted . | . . . . . Alert | -11 -10 -9 -9 -8 ------- Run | Scr Mat Mat Min Mat Peak Influence 252 | . 70 29 10 252 Average Influence 47 | . 50 29 10 54 Maximum Alert Level 1 | . . . . 1 Low Security (%) 98 | 100 100 100 100 95 Level 1 1 | . . . . 4 Level 2 . | . . . . . Level 3 . | . . . . . Level 4 . | . . . . . Level 5 . | . . . . . High Security . | . . . . . Max Security . | . . . . . Squads Dispatched 4 | . . . . 4 Investigation . | . . . . . Extermination . | . . . . . Reinforcement 4 | . . . . 4 Assault . | . . . . . Garrison . | . . . . . Intercept . | . . . . . Construction Impeded 1 | . . . . 1 Haulers Reinforced . | . . . . . Stealth | -11 -10 -9 -9 -8 --------- Run | Scr Mat Mat Min Mat Distress Signals 1 | . . . . 1 Communications Jammed . | . . . . . Distress Signals . | . . . . . Times Spotted 15 | . 3 . . 12 Peak Tracking Total 5 | . 3 . . 5 Tactical Retreats 1 | . . . . 1 Traps | -11 -10 -9 -9 -8 ------- Run | Scr Mat Mat Min Mat Traps Triggered 1 | . 1 . . . Indirectly . | . . . . . Trap Hack Attempts . | . . . . . Triggered . | . . . . . Disarmed . | . . . . . Reprogrammed . | . . . . . Reused . | . . . . . Traps Extracted . | . . . . . Installed . | . . . . . Triggered . | . . . . . Machines | -11 -10 -9 -9 -8 ---------- Run | Scr Mat Mat Min Mat Machines Disabled 1 | . . . . 1 Max in Single Turn 1 | . . . . 1 Machines Sabotaged . | . . . . . Garrisons Compromised . | . . . . . Overloaded Fab Kills . | . . . . . Fab Network Shutdowns . | . . . . . Hacking | -11 -10 -9 -9 -8 --------- Run | Scr Mat Mat Min Mat Machines Accessed . | . . . . . Terminals . | . . . . . Fabricators . | . . . . . Repair Stations . | . . . . . Recycling Units . | . . . . . Scanalyzers . | . . . . . Garrison Access . | . . . . . Total Hacks . | . . . . . Successful . | . . . . . Failed . | . . . . . Catastrophic . | . . . . . Database Lockouts . | . . . . . Manual . | . . . . . Terminals . | . . . . . Fabricators . | . . . . . Repair Stations . | . . . . . Recycling Units . | . . . . . Scanalyzers . | . . . . . Garrison Access . | . . . . . Terminal Hacks . | . . . . . Fabricator Hacks . | . . . . . Repair Station Hacks . | . . . . . Recycling Unit Hacks . | . . . . . Scanalyzer . | . . . . . Garrison Access Hacks . | . . . . . Unauthorized Hacks . | . . . . . Terminals . | . . . . . Fabricators . | . . . . . Repair Stations . | . . . . . Recycling Units . | . . . . . Scanalyzers . | . . . . . Garrison Access . | . . . . . Data Cores Recovered . | . . . . . Used . | . . . . . Hacking Detections . | . . . . . Full Trace Events . | . . . . . Feedback Events . | . . . . . Feedback Blocked . | . . . . . Robot Schematics Acquired . | . . . . . Robots Built . | . . . . . Matter . | . . . . . Time . | . . . . . Total Robot Build Rating . | . . . . . Part Schematics Acquired . | . . . . . Parts Built . | . . . . . Matter . | . . . . . Time . | . . . . . Total Part Build Rating . | . . . . . Parts Repaired . | . . . . . Time . | . . . . . Parts Recycled . | . . . . . Recycled Matter . | . . . . . Retrieved Matter . | . . . . . Retrieved Components . | . . . . . Parts Scanalyzed . | . . . . . Part Schematics Acquired . | . . . . . Parts Damaged . | . . . . . Bothacking | -11 -10 -9 -9 -8 ------------ Run | Scr Mat Mat Min Mat Used RIF Installer . | . . . . . Robots Hacked . | . . . . . Non-combat . | . . . . . Combat . | . . . . . Robot Hacks Applied . | . . . . . Relay Couplers Released . | . . . . . Robots Rewired . | . . . . . Allies Hacked . | . . . . . Hacks Repelled . | . . . . . Allies | -11 -10 -9 -9 -8 -------- Run | Scr Mat Mat Min Mat Total Allies . | . . . . . Largest Group . | . . . . . Highest-Rated Group . | . . . . . Highest-Rated Ally . | . . . . . Total Orders . | . . . . . Ally Attacks . | . . . . . Total Damage . | . . . . . Kills . | . . . . . Allies Corrupted . | . . . . . Allies Melted . | . . . . . Intel | -11 -10 -9 -9 -8 ------- Run | Scr Mat Mat Min Mat Robot Analysis Total . | . . . . . Derelict Logs Recovered . | . . . . . Drone Launches . | . . . . . Drone Recoveries . | . . . . . Exploration | -11 -10 -9 -9 -8 ------------- Run | Scr Mat Mat Min Mat Turns Passed 512 | 43 231 7 10 221 Spaces Moved 426 | 39 207 8 12 160 Core 7 | 7 . . . . Treads . | . . . . . Legs . | . . . . . Wheels 419 | 32 207 8 12 160 Hover . | . . . . . Flight . | . . . . . Fastest Speed 50 | 50 90 90 90 90 Average Speed 89 | 82 90 90 90 91 Slowest Speed 100 | 90 90 90 90 100 Overloaded Moves . | . . . . . Propulsion Burnouts . | . . . . . Robots Hopped . | . . . . . Cave-ins Triggered . | . . . . . Exploration Rate (%) 13 | 3 39 2 7 16 Regions Visited 4 Branch Regions 1 Pre-discovered Areas . | . . . . . Known Exits Taken . | . . . . . Unknown Exits Taken 4 | 1 1 1 1 . Scrap Searched . | . . . . . Spaces Dug 11 | . . . . 11 Terrain Destroyed 50 | . . . . 50 Melee . | . . . . . Projectile . | . . . . . AOE 50 | . . . . 50 Actions | -11 -10 -9 -9 -8 --------- Run | Scr Mat Mat Min Mat Total 513 | 49 239 7 11 207 Wait 10 | . 10 . . . Move 422 | 38 206 7 11 160 Hop . | . . . . . Pick Up 21 | 6 5 . . 10 Fast Attach . | . . . . . Attach 20 | 5 6 . . 9 Detach 2 | . 2 . . . Swap 2 | . 1 . . 1 Drop 7 | . 2 . . 5 Fire 29 | . 7 . . 22 Melee . | . . . . . Ram . | . . . . . Kick . | . . . . . Crush . | . . . . . Escape Stasis . | . . . . . Rewire . | . . . . . Trap . | . . . . . Miscellaneous . | . . . . . Route ------- -11/Scrapyard -10/Materials -9/Materials -9/Mines -8/Materials History --------- Turn | Location | Event 4 | -11/Scrapyard | Discovered new exit (range 16) 44 | -11/Scrapyard | Entered Materials 257 | -10/Materials | Discovered new exit (range 6) 275 | -10/Materials | Entered another Materials area 275 | -9/Materials | Evolved 2 slots: Power x1, Utility x1 275 | -9/Materials | Discovered new exit (range 8) 282 | -9/Materials | Entered Mines 284 | -9/Mines | Discovered new exit (range 7) 292 | -9/Mines | Entered Materials 292 | -8/Materials | Evolved 2 slots: Propulsion x1, Utility x1 308 | -8/Materials | Build established: Mutant 513 | -8/Materials | Self-destructed Last Messages --------------- 00480_ Dropped Lgt. Nuclear Core. 00480_ U-05 Engineer builds a Wall. 00482_ O-16 Technician: "IFF HANDSHAKE FAILED. SECURING TERMINAL." 00483_ K-01 Serf destroyed. 00484_ U-05 Engineer lays Concrete. 00486_ U-05 Engineer builds a Wall. 00487_ K-01 Serf collects debris. 00488_ U-05 Engineer lays Concrete. 00488_ O-16 Technician uses terminal to summon reinforcements. 00488_ ALERT: Hostiles spotted, dispatching reinforcements to Terminal M002. 00488_ O-16 Technician locks terminal. 00490_ U-05 Engineer lays Concrete. 00493_ U-05 Engineer builds a Wall. 00502_ Electrolysis Chamber disabled. 00504_ G-47 Trooper destroyed. 00510_ Acquired 42 matter. 00511_ Acquired 36 matter. 00512_ Acquired 24 matter. 00513_ Dropped Hacking Suite. Map ----- +----------------------------------------------------+ | ?????????????????????????????????????????????????? | | ?????????????????????????????????????????????????? | | ?????????????????????????????????????????????????? | | ?????????????????????????????????????????????????? | | ?????????????????????????????????????????????????? | | ?????????????????????????????????????????????????? | | ?????????????????????????????????????????????????? | | ?????????????????????????????????????????????????? | | ?????????????????????????????????????????????????? | | ?????????????????????????????????????????????????? | | ?????????????????????????????????????????????????? | | ?????????????????????????#???????????????????????? | | ????????????????????????? ???????????????????????? | | ????????????????????????? ???????????????????????? | | ????????????????????????# ???????????????????????? | | ######??????????????????# ???????????????????????? | | ####?#####?????????# ???????????????????????? | | # ###"T"#########?# #??????????????????????? | | ! #?# #??????""??????????????? | | =[% #?# #?????"""??????????????? | | %* o #?# #???? """?#????????????? | | ## * ###/####### #?# #??? ? #????????????? | | # ##?# "????# ### #### ## ####??????????? | | #" #??# "T???# # ]! #??????????? | | #T #??# ??# = ! ] !* #??????????? | | #" #??# ## @! ! #??????????? | | ## ?+ ## * #??????????? | | #### #### """ ## = = #??????????? | | #??# """ ###### [ "" #??????????? | | #####+##??? """ #??? #??????????? | | ???? ???? ?? #? # ######+######??????????? | | ????"""???? "??? # + ??????????????????????? | | ????"""???? ?????# """ # ##?????????????????????? | | ????"""???? ?????# """ # #??????????????????????? | | ??????????? ?????#[ """ + #??????????????????????? | | ???????????#?????###?#### #??????????????????????? | | ????????????????????????# #??????????????????????? | | ???????????????????????? #??????????????????????? | | ????????????????????????###??????????????????????? | | ?????????????????????????????????????????????????? | | ?????????????????????????????????????????????????? | | ?????????????????????????????????????????????????? | | | | | | | | | | | | | | | | | +----------------------------------------------------+ Best States ------------- Heat Dissipation 31 Energy Generation 23 Energy Capacity 250 Matter Stores 197 Matter Capacity 300 Sight Range 16 Terrain Scan Density 60 ECM Strength 2 Armor Coverage 375 Power Shielding 33 Evasion (%) 42 Item Schematics ----------------- None Robot Schematics ------------------ None Fabricated ------------ Nothing Alien Tech Used ----------------- None Achievements -------------- None Challenges ------------ None Game ------ Seed CryofiberSurveybotProjector Manual? 0 Play Time 00:11:08 Cumulative 3.5 hours Start 2020.05.07 @ 10:01:12 End 2020.05.30 @ 09:34:11 Sessions 3 Manual Loads 0 Difficulty Rogue Special Mode None Game No. 13 Rogue 13 Adventurer 0 Explorer 0 Win Type - Total 0 Types 0/0/0/0/0/0/0 Lore% 2 Gallery% 9 Achievement% 8 Wizard Run 0 Options --------- ASCII 0 Keyboard 0 Movement Mouse Keybinds 0 Fullscreen 1 Font 24/Smallcaps Map View 76x50 Tactical HUD 1 Map Filters NONE Filters NONE Steam 1 RUN: 55cb70f8-1d2a-4f7c-9e36-17dda7162cf9